Cogmind - Beta 15 @@@ ROGUE MODE // 2025.07.05 @ 00:28:08 Player: bugsniper Result: Destroyed by as-21853 with Assembled Rifle Performance ------------- Evolutions (0) 0 Regions Visited (2) 400 Robots Destroyed (19) 95 Value Destroyed (405) 405 Prototype IDs (0) 0 Alien Tech Used (0) 0 Bonus (0) 0 TOTAL SCORE: 900 Bonus ------- None Cogmind --------- Core Integrity 0/250 Matter 270/300 Energy 100/100 System Corruption 0% Temperature Cool (0) Movement Core (50) Location -10/Mines Parts ------- > --- POWER (1) -------- (None) > --- PROPULSION (2) --- (None) > --- UTILITY (2) ------ (None) > --- WEAPON (2) ------- Small Laser > --- INVENTORY (5) ---- Light Ion Engine Light Treads Wheel Compact Wheel Small Laser Peak State ------------ > --- POWER ------------ Light Nuclear Core > --- PROPULSION ------- Aluminum Leg Aluminum Leg > --- UTILITY ---------- Small Storage Unit Terrain Scanner > --- WEAPON ----------- Small Laser Small Laser > --- INVENTORY -------- Light Treads Light Treads Aluminum Leg Aluminum Leg Wheel Compact Wheel Small Laser [Rating: 9] Favorites ----------- Power Light Ion Engine Engine Light Ion Engine Power Core Light Nuclear Core Propulsion Aluminum Leg Leg Aluminum Leg Utility Small Storage Unit Device Terrain Scanner Storage Small Storage Unit Weapon Small Laser Energy Gun Small Laser Ballistic Gun Assault Rifle Launcher Grenade Launcher Build | -11 -10 -10 ------- Run | Yrd Mat Min Slots Evolved . | . . . Power . | . . . Propulsion . | . . . Utility . | . . . Weapon . | . . . Parts Attached 12 | . 11 1 Power 4 | . 4 . Engine 3 | . 3 . Core 1 | . 1 . Reactor . | . . . Propulsion 2 | . 2 . Treads . | . . . Leg 2 | . 2 . Wheel . | . . . Hover . | . . . Flight . | . . . Utility 1 | . 1 . Device 1 | . 1 . Storage . | . . . Processor . | . . . Hackware . | . . . Protection . | . . . Artifact . | . . . Weapon 5 | . 4 1 Energy Gun 4 | . 4 . Energy Cannon . | . . . Ballistic Gun . | . . . Ballistic Cannon . | . . . Launcher 1 | . . 1 Special Weapon . | . . . Impact Weapon . | . . . Slashing Weapon . | . . . Piercing Weapon . | . . . Special Melee Weapon . | . . . Unidentified Prototypes . | . . . Parts Lost 8 | . 4 4 Power 2 | . 2 . Propulsion 3 | . 1 2 Utility 1 | . . 1 Weapon 2 | . 1 1 Highest Loss Streak 4 | . 2 4 To Critical Strikes . | . . . Average Backups 7 | . 7 8 Power . | . . 1 Propulsion 5 | . 5 5 Utility . | . . . Weapon 1 | . 1 2 Tool/Special . | . . . Unused Backups 13 | . 6 7 Power 2 | . 1 1 Propulsion 8 | . 2 6 Utility 1 | . 1 . Weapon 2 | . 2 . Tool/Special . | . . . Average Slot Usage (%) 93 | . 94 76 Engine 11 | . 11 9 Core 2 | . 2 . Leg 27 | . 28 23 Device 8 | . 8 9 Storage 13 | . 14 9 Energy Gun 23 | . 24 18 Ballistic Gun 3 | . 3 . Peak Build Rating 9 | . 9 7 Average Rating 7 | . 7 5 On Entrance 6 | 6 6 7 Naked Turns . | . . . Heaviest Build 14 | 14 14 13 Greatest Support 20 | 20 20 20 Greatest Overweight (x) . | . . . Average Overweight (x) . | . . . Largest Inventory Capacity 8 | . 8 8 Average Capacity 7 | . 8 7 Most Carried 8 | . 8 8 Average Carried 7 | . 7 7 Final Capacity 8 | 8 8 5 Final Carried 8 | 6 8 5 Class Distribution -------------------- 100% | Mutant Dominant Class ---------------- Mutant | -10/Materials Mutant | -10/Mines Resources | -11 -10 -10 ----------- Run | Yrd Mat Min Matter Collected 393 | 188 205 . Remotely . | . . . Salvage Created 670 | . 655 15 Parts 35 | . 32 3 Haulers Intercepted . | . . . Recyclers Shooed 3 | . 3 . Parts Field Recycled . | . . . Retrieved Matter . | . . . Parts Self-Destructed . | . . . Prevented . | . . . Kills | -11 -10 -10 ------- Run | Yrd Mat Min Combat Hostiles Destroyed 21 | . 12 9 Guns 12 | . 12 . AOE 9 | . . 9 Classes Destroyed 7 | . 6 1 Worker 3 | . 2 1 Builder 1 | . 1 . Recycler 2 | . 2 . Mechanic 1 | . 1 . Swarmer 3 | . 3 . Grunt 9 | . 9 . Assembled 9 | . . 9 Best Kill Streak 10 | . 3 10 Combat Bots Only 9 | . 3 9 Max Kills in Single Turn 4 | . 1 4 Gunslinging . | . . . Exploded 3 | . . 3 Melee . | . . . Uniques/NPCs Destroyed . | . . . Combat | -11 -10 -10 -------- Run | Yrd Mat Min Hostile Shots Fired 114 | . 97 17 Missed 28 | . 26 2 Hits 86 | . 71 15 Melee 6 | . . 6 Projectile 80 | . 71 9 Damage Taken 1141 | . 783 358 Core 255 | . 131 124 Absorbed by Shields . | . . . Core Remaining (%) 100 | 100 . . Volleys Fired 69 | . 65 4 Largest 2 | . 2 1 Hottest 90 | . 90 30 Shots Fired 134 | . 130 4 Gun 130 | . 130 . Cannon . | . . . Launcher 4 | . . 4 Special . | . . . Kinetic 31 | . 31 . Thermal 99 | . 99 . Explosive 4 | . . 4 Electromagnetic . | . . . Robot Hit Streak 16 | . 16 . Robot Miss Streak 4 | . 4 . Penetration Max . | . . . Secondary Targets 4 | . 4 . Max Gunslinging Chain 1 | . 1 . Shots Hit Robots 79 | . 79 . Core Hits 58 | . 32 26 Critical Kills . | . . . Critical Parts Destroyed 1 | . 1 . Critical Strikes 2 | . 2 . Burn 1 | . 1 . Destroy 1 | . 1 . Melee Attacks . | . . . Impact . | . . . Slashing . | . . . Piercing . | . . . Sneak Attacks . | . . . Combat Hostiles . | . . . Follow-up Attacks . | . . . Damage Inflicted 1449 | . 908 541 Guns 908 | . 908 . Cannons . | . . . Explosions 541 | . . 541 Melee . | . . . Ramming . | . . . Kinetic 166 | . 166 . Thermal 742 | . 742 . Explosive 541 | . . 541 Electromagnetic . | . . . Impact . | . . . Slashing . | . . . Piercing . | . . . Highest Corruption . | . . . Average Corruption . | . . . Corruption Purged . | . . . Corruption Blocked . | . . . Overload Shots . | . . . Overflow Damage 2 | . . 2 Projectiles . | . . . Explosions 2 | . . 2 Melee . | . . . Knockbacks . | . . . Impact . | . . . Kinetic . | . . . Secondary . | . . . Self-Inflicted Damage 97 | . . 97 Shots 4 | . . 4 Rammed . | . . . Targets Rammed . | . . . Kicked . | . . . Crushed . | . . . Highest Temperature 433 | . 433 15 Average Temperature 97 | . 97 15 Received Heat Transfer 383 | . 363 20 Effects 6 | . 6 . Shutdowns 1 | . 1 . Energy Bleed 1 | . 1 . Interference 3 | . 3 . Short Circuit 1 | . 1 . Siege Activations . | . . . Martial Activations . | . . . Shielding Activations . | . . . Robots Disrupted . | . . . Combat Hostiles . | . . . Robots Corrupted . | . . . Combat Hostiles . | . . . Parts Fried . | . . . Impact Corruptions . | . . . Robots Melted . | . . . Combat Hostiles . | . . . Parts Melted 6 | . 6 . Heat Transferred 1939 | . 1939 . Parts Sabotaged . | . . . Parts Stolen . | . . . Parts Stripped . | . . . Power Chain Reactions . | . . . Alert | -11 -10 -10 ------- Run | Yrd Mat Min Maximum Alert Level . | . . . Low Security (%) 100 | . 100 100 Level 1 . | . . . Level 2 . | . . . Level 3 . | . . . Level 4 . | . . . Level 5 . | . . . High Security . | . . . Max Security . | . . . Peak Influence 99 | . 99 50 Initial 26 | . . 26 Average 39 | . 39 32 Influence Increases 424 | . 391 33 Destroy 0b10 Robot/C 240 | . 240 . Destroy 0b10 Robot/NC 35 | . 30 5 Destroy Leader 60 | . 60 . Select Force Hacks 30 | . 30 . Disable Machine 15 | . . 15 Destroy Structure 14 | . 1 13 Lose Combat Pursuer 30 | . 30 . Influence Decreases 405 | . 323 82 Entered New Map 42 | . . 42 Time Decay 283 | . 283 . Lost Part 80 | . 40 40 Squads Dispatched 3 | . 3 . Investigation 1 | . 1 . Extermination . | . . . Reinforcement 2 | . 2 . Assault . | . . . Garrison . | . . . Intercept . | . . . Searches Triggered . | . . . Construction Impeded . | . . . Haulers Reinforced . | . . . Active Scanning Responses . | . . . Cargo Convoy Interrupts . | . . . Stealth | -11 -10 -10 --------- Run | Yrd Mat Min Distress Signals 3 | . 3 . Communications Jammed . | . . . Distress Signals . | . . . Times Spotted 42 | . 23 19 Peak Tracking Total 20 | . 4 20 Tactical Retreats 2 | . 2 . Traps | -11 -10 -10 ------- Run | Yrd Mat Min Traps Triggered . | . . . Indirectly . | . . . Trap Hack Attempts . | . . . Triggered . | . . . Disarmed . | . . . Reprogrammed . | . . . Reused . | . . . Traps Extracted . | . . . Installed . | . . . Triggered . | . . . Machines | -11 -10 -10 ---------- Run | Yrd Mat Min Machines Disabled 1 | . . 1 Max in Single Turn 1 | . . 1 Machines Repaired . | . . . Machines Dismantled . | . . . Machines Sabotaged . | . . . Overloaded Fab Kills . | . . . Hacking | -11 -10 -10 --------- Run | Yrd Mat Min Machines Accessed 2 | . 2 . Terminals 1 | . 1 . Fabricators . | . . . Repair Stations . | . . . Recycling Units 1 | . 1 . Scanalyzers . | . . . Garrison Access . | . . . Total Hacks 2 | . 2 . Successful 2 | . 2 . Failed . | . . . Catastrophic . | . . . Database Lockouts . | . . . Manual 1 | . 1 . Terminals 1 | . 1 . Fabricators . | . . . Repair Stations . | . . . Recycling Units 1 | . 1 . Scanalyzers . | . . . Garrison Access . | . . . Terminal Hacks 1 | . 1 . Record 1 | . 1 . Fabricator Hacks . | . . . Repair Station Hacks . | . . . Recycling Unit Hacks . | . . . Scanalyzer . | . . . Garrison Access Hacks . | . . . Unauthorized Hacks 1 | . 1 . Terminals . | . . . Fabricators . | . . . Repair Stations . | . . . Recycling Units 1 | . 1 . Tunnel 1 | . 1 . Scanalyzers . | . . . Garrison Access . | . . . Data Cores Recovered . | . . . Used . | . . . Hacking Detections . | . . . Full Trace Events . | . . . Feedback Events . | . . . Feedback Blocked . | . . . Robot Schematics Acquired . | . . . Robots Built . | . . . Authchips . | . . . Time . | . . . Total Robot Build Rating . | . . . Part Schematics Acquired . | . . . Parts Built . | . . . Authchips . | . . . Time . | . . . Total Part Build Rating . | . . . Parts Repaired . | . . . Time . | . . . Parts Recycled . | . . . Recycled Matter . | . . . Retrieved Matter . | . . . Retrieved Components . | . . . Parts Scanalyzed . | . . . Part Schematics Acquired . | . . . Parts Damaged . | . . . Bothacking | -11 -10 -10 ------------ Run | Yrd Mat Min Used RIF Installer . | . . . Robots Hacked . | . . . Non-combat . | . . . Combat . | . . . Robot Hacks Applied . | . . . Relay Couplers Released . | . . . Fabnet Peak Effective % . | . . . Robots Rewired . | . . . Allies Hacked . | . . . Hacks Repelled . | . . . Allies | -11 -10 -10 -------- Run | Yrd Mat Min Total Allies . | . . . Largest Group . | . . . Highest-Rated Group . | . . . Highest-Rated Ally . | . . . Total Orders . | . . . Ally Attacks . | . . . Total Damage . | . . . Kills . | . . . Allies Corrupted . | . . . Allies Melted . | . . . Intel | -11 -10 -10 ------- Run | Yrd Mat Min Active Infowar (turns) 357 | . 357 . Terrain 357 | . 357 . Robot Analysis Total . | . . . Derelict Logs Recovered . | . . . Drone Launches . | . . . Drone Recoveries . | . . . Exploration | -11 -10 -10 ------------- Run | Yrd Mat Min Turns Passed 790 | . 776 14 Spaces Moved 447 | 1 442 4 Core 3 | . . 3 Treads . | . . . Legs 444 | 1 442 1 Wheels . | . . . Hover . | . . . Flight . | . . . Fastest Speed 50 | 120 120 50 Average Speed 119 | 120 120 67 Slowest Speed 120 | 120 120 120 Overloaded Moves . | . . . Propulsion Burnouts . | . . . Robots Hopped . | . . . Potential Cave-ins . | . . . Cave-ins Triggered . | . . . Exploration Rate (%) 31 | 2 85 6 Regions Visited 2 Branch Regions 1 Pre-discovered Areas 1 | . 1 . Known Exits Taken . | . . . Unknown Exits Taken 2 | 1 1 . Scrap Searched . | . . . Spaces Dug 27 | . . 27 Terrain Destroyed 27 | . . 27 Melee . | . . . Projectile . | . . . AOE 27 | . . 27 Terrain Rammed . | . . . Walls Destroyed . | . . . Machines Disabled . | . . . Actions | -11 -10 -10 --------- Run | Yrd Mat Min Total 570 | . 559 11 Wait 28 | . 28 . Move 445 | . 441 4 Hop . | . . . Pick Up 7 | . 7 . Fast Attach 1 | . 1 . Attach 5 | . 5 . Detach . | . . . Swap 7 | . 6 1 Drop 8 | . 6 2 Fire 69 | . 65 4 Melee . | . . . Ram . | . . . Kick . | . . . Crush . | . . . Escape Stasis . | . . . Rewire . | . . . Trap . | . . . Miscellaneous . | . . . Route ------- -11/Scrapyard -10/Materials (discovered 3 exits: [*Mat x2] / [*Min]) -10/Mines History --------- Turn | Location | Event 1 | -11/Scrapyard | Discovered new exit (range 0) 1 | -11/Scrapyard | Entered Materials 235 | -10/Materials | Discovered new exit (range 9) 323 | -10/Materials | Build established: Mutant 501 | -10/Materials | Derelicts attacked the area 564 | -10/Materials | Discovered new exit (range 10) 654 | -10/Materials | Core integrity fell below 50% 747 | -10/Materials | Discovered new exit (range 11) 777 | -10/Materials | Entered Mines 778 | -10/Mines | Assembled infested the area 785 | -10/Mines | Core integrity fell below 20% 791 | -10/Mines | Destroyed by as-21853 with Assembled Rifle Last Messages --------------- 00779_ K-01 Serf collects debris. 00780_ Core Extractor disabled. 00781_ Terrain Scanner destroyed. 00782_ K-01 Serf collects debris. 00782_ as-99431 destroyed. 00782_ as-13586 destroyed. 00782_ as-76611 destroyed. 00784_ as-78950 destroyed. 00784_ Aluminum Leg destroyed. 00784_ Destroyed Aluminum Leg. 00784_ as-11759 destroyed. 00784_ as-41702 destroyed. 00786_ as-65457 destroyed. 00786_ as-61668 destroyed. 00786_ K-01 Serf destroyed. 00786_ as-59677 destroyed. 00787_ Grenade Launcher destroyed. 00788_ Dropped Sml. Storage Unit. 00789_ Dropped Ion Engine. 00790_ Aluminum Leg destroyed. Map ----- +----------------------------------------------------+ | | | | | | | | | | | | | | | | | | | | | | | | | | | | | | | | | ???????????????????????????????????????????????? | | ???????????????????????????????????????????????? | | ???????????????????????????????????????????????? | | ???????????????????????????????????????????????? | | ????????????????????????########???????????????? | | ????????????????????????# #???????????????? | | ????????????????????????# """ #???????????????? | | ??????????????????#?????# """ #???????????????? | | ??????????????????? ?###*%"" #???????????????? | | ????????????????????# # @= #???????????????? | | ??????????????####### %#???????????????? | | ?????????????# a a= #???????????????? | | ????????????# a% *!= #???????????????? | | ????????????# aa [ #???????????????? | | ????????????## aa# ###???????????????? | | ?????????????### a a## #?????????????????? | | ???????????????## ??# ##?????????????????? | | ????????????????## ???#######??????????????????? | | ?????????????????#?????????????????????????????? | | ???????????????????????????????????????????????? | | ???????????????????????????????????????????????? | | ???????????????????????????????????????????????? | | ???????????????????????????????????????????????? | | ???????????????????????????????????????????????? | | ???????????????????????????????????????????????? | | ???????????????????????????????????????????????? | | ???????????????????????????????????????????????? | | ???????????????????????????????????????????????? | | ???????????????????????????????????????????????? | | ???????????????????????????????????????????????? | | ???????????????????????????????????????????????? | | ???????????????????????????????????????????????? | | ???????????????????????????????????????????????? | | ???????????????????????????????????????????????? | +----------------------------------------------------+ Best States ------------- Heat Dissipation 25 Energy Generation 14 Energy Capacity 250 Matter Stores 300 Matter Capacity 300 Sight Range 16 Terrain Scan Range 14 Terrain Scan Density 10 Evasion (%) 55 Item Schematics ----------------- None Robot Schematics ------------------ None Fabricated ------------ Nothing Repaired ---------- Nothing Alien Tech Used ----------------- None Achievements -------------- Hunted Challenges ------------ None Game ------ Seed TacticalConstructBoregun Manual? 0 Play Time 00:10:33 Cumulative 409.7 hours Start 2025.07.05 @ 00:18:10 End 2025.07.05 @ 00:28:08 Sessions 1 Manual Loads 0 Difficulty Rogue Special Mode None Game No. 223 Rogue 223 Adventurer 0 Explorer 0 Win Type - Total 11 Types 10/0/1/0/0/0/0/0/0/0 Lore% 42 Gallery% 63 Achievement% 52 Wizard Run 0 Options --------- Layout 1 ASCII 0 Keyboard 0 Movement Numpad Keybinds 0 Fullscreen 1 Font 24/Smallcaps Map View 50x35 Zoom Use 0% Tactical HUD 1 Map Filters NONE Filters NONE Steam 1 RUN: 070d75e9-c352-46d3-b358-1a99934d0abe